bitfinex-derivatives/quotes_ETHF0:USTF0_20250702
["timestamp","ask_amount","ask_price","bid_price","bid_amount"]
[1751486110114,0.77261,2587.1,2587.0,0.77264]
[1751486110311,1.03014683,2587.1,2587.0,7.72940685]
[1751486110913,1.02940369,2587.1,2586.7,1.93183]
[1751486111113,37.42421,2587.2,2587.1,0.77261]
[1751486111311,1.72109505,2587.2,2587.1,0.77261]
[1751486111615,37.73309505,2587.2,2587.1,0.77261]
[1751486112014,0.77263,2587.1,2587.0,0.77261]
[1751486112216,1.80212505,2587.1,2587.0,0.77261]
[1751486112411,0.77267,2587.0,2586.9,0.77265]
[1751486112615,0.77269,2586.9,2586.8,0.77267]
[1751486113217,0.77266,2587.0,2586.9,0.77265]
[1751486113422,0.77263,2587.1,2587.0,0.77261]
[1751486114216,0.7727,2586.9,2586.8,0.77268]
[1751486115216,0.7727,2586.9,2586.6,1.9319]
[1751486115217,0.77266,2587.0,2586.9,0.77265]
[1751486115618,1.80241914,2587.0,2586.9,0.77265]
[1751486116517,1.02975914,2587.0,2586.9,0.77265]
[1751486116712,0.77263,2587.1,2587.0,0.77264]
[1751486116913,1.80208208,2587.1,2587.0,0.77264]
[1751486118418,1.02945208,2587.1,2587.0,0.77264]
[1751486118618,37.01745208,2587.1,2586.8,1.3302]
[1751486118820,0.77267,2587.0,2586.9,0.77264]
[1751486119123,1.80280146,2587.0,2586.9,0.77264]
[1751486119317,1.03013146,2587.0,2586.9,0.77264]
[1751486119620,1.80277146,2587.0,2586.9,0.77264]
[1751486120219,1.03013146,2587.0,2586.4,0.6984]
[1751486120425,0.77283,2586.5,2586.4,0.7728]
[1751486120623,0.77286,2586.4,2586.3,0.77283]
[1751486120821,0.77288,2586.3,2586.2,0.77286]
[1751486121825,0.77291,2586.2,2586.1,0.77289]
[1751486122929,1.03214015,2586.2,2586.1,0.77289]
[1751486123325,1.80502015,2586.2,2586.1,0.77289]
[1751486124020,1.03214015,2586.2,2586.1,0.77289]
[1751486124229,1.80502015,2586.2,2586.1,0.77289]
[1751486126927,1.03214015,2586.2,2586.1,0.77289]
[1751486127232,1.80502015,2586.2,2586.1,0.77289]
[1751486127836,1.03214015,2586.2,2586.1,0.77289]
[1751486128231,1.80502015,2586.2,2586.1,0.77289]
[1751486129231,1.03214015,2586.2,2586.1,0.77289]
[1751486129432,1.80502015,2586.2,2586.1,0.77289]
[1751486130335,1.03214015,2586.2,2586.1,0.77289]
[1751486130535,1.38,2586.4,2586.3,0.77285]
[1751486130732,1.03228501,2586.4,2586.3,0.77285]
[1751486131827,1.03228501,2586.4,2586.3,2.73955]
[1751486132033,1.80512501,2586.4,2586.3,0.77285]
[1751486132234,0.7729,2586.2,2586.1,0.77289]
[1751486132635,1.03281329,2586.2,2585.8,0.6576]
[1751486132931,0.7729,2586.2,2586.1,0.77291]
[1751486133138,1.80571882,2586.2,2586.1,0.77291]
[1751486133835,1.03281882,2586.2,2586.1,0.77291]
[1751486134238,36.72381,2586.5,2586.4,0.77282]
[1751486134437,37.7564915,2586.5,2586.4,0.77282]
[1751486134642,37.7565015,2586.5,2586.3,0.77283]
[1751486134836,1.0326815,2586.4,2586.3,0.77283]
[1751486138134,1.8055015,2586.4,2586.3,0.77283]
[1751486138437,1.0326815,2586.4,2586.3,0.77283]
[1751486139237,1.8055015,2586.4,2586.3,0.77283]
[1751486139432,1.0326815,2586.4,2586.3,0.77283]
[1751486139639,1.0326815,2586.4,2586.3,7.72959685]
[1751486139831,36.5621,2586.6,2586.5,0.77279]
[1751486140035,37.58429568,2586.6,2586.5,0.77279]
[1751486140232,1.67029568,2586.6,2586.5,0.77279]
[1751486140541,66.798,2587.0,2586.9,0.77267]
[1751486140738,104.42366623,2587.0,2586.9,0.77267]
[1751486140935,104.41966623,2587.0,2586.9,0.77267]
[1751486141135,105.19230623,2587.0,2586.9,0.77267]
[1751486141441,0.7727,2586.9,2586.8,0.77268]
[1751486141741,0.77273,2586.8,2586.7,0.77271]
[1751486142136,0.77278,2586.6,2586.5,0.77276]
[1751486142336,36.68178,2586.6,2586.5,0.77276]
[1751486142536,37.70752757,2586.6,2586.5,0.77276]
[1751486142736,39.01482757,2586.6,2586.5,0.77276]
[1751486143236,38.24204757,2586.6,2586.5,0.77276]
[1751486143432,38.24804757,2586.6,2586.5,0.77276]
[1751486146342,2.33304757,2586.6,2586.5,0.77276]
[1751486146546,1.02574757,2586.6,2586.5,0.77276]
[1751486146738,36.92374757,2586.6,2586.5,2.09486]
[1751486147135,1.02574757,2586.6,2586.5,2.09486]
[1751486147445,35.895,2587.0,2586.7,1.93182]
[1751486147635,35.895,2587.0,2586.9,0.77267]
[1751486148843,0.6885,2587.1,2587.0,0.77264]
[1751486149145,36.5865,2587.1,2587.0,0.77264]
[1751486149345,0.6351,2587.3,2587.2,0.77258]
[1751486149545,36.5311,2587.3,2587.2,0.77258]
[1751486150045,0.6351,2587.3,2587.2,0.77258]
[1751486150449,36.5281,2587.3,2587.2,0.77258]
[1751486154644,0.6459,2587.5,2587.4,0.77252]
[1751486154840,11.90549,2587.6,2587.2,0.77258]
[1751486154841,0.647,2587.6,2587.5,0.77249]
[1751486155050,37.1677,2587.6,2587.5,0.77249]
[1751486155243,37.94016,2587.6,2587.5,0.77249]
[1751486155446,37.1677,2587.6,2587.5,0.77249]
[1751486155750,1.3177,2587.6,2587.5,0.77249]
[1751486155943,37.1837,2587.6,2587.5,0.77249]
[1751486156343,37.95616,2587.6,2587.5,0.77249]
[1751486157848,37.1837,2587.6,2587.5,0.77249]
[1751486158046,37.95616,2587.6,2587.5,0.77249]
[1751486159444,37.1427,2587.6,2587.5,0.77249]
[1751486160147,37.91516,2587.6,2587.5,0.77249]
[1751486160350,37.1427,2587.6,2587.2,1.9349]
[1751486160547,0.77259,2587.3,2587.2,0.77253]
[1751486160849,36.59059,2587.3,2587.2,0.77253]
[1751486162450,35.818,2587.3,2587.2,0.77253]
[1751486162651,36.59055,2587.3,2587.2,0.77253]
[1751486164053,1.4004,2587.5,2587.4,0.77252]
[1751486164254,36.83007101,2587.5,2587.4,0.77252]
[1751486165052,35.8,2587.5,2587.4,0.77252]
[1751486165455,36.57249,2587.5,2587.4,0.77252]
[1751486166154,35.8,2587.5,2587.4,0.77252]
[1751486167555,36.57249,2587.5,2587.4,0.77252]
[1751486168158,35.8,2587.5,2587.4,0.77252]
[1751486168759,1.3177,2587.6,2587.5,0.77249]
[1751486169057,37.0907,2587.6,2587.5,0.77249]
[1751486169450,66.768,2587.8,2587.7,0.77243]
[1751486169651,103.58293499,2587.8,2587.7,0.77243]
[1751486169857,47.91393499,2587.8,2587.7,0.77243]
[1751486170058,12.13293499,2587.8,2587.7,0.77243]
[1751486170258,35.778,2587.8,2587.7,0.77243]
[1751486171460,0.636,2587.9,2587.8,0.7724]
[1751486171660,36.413,2587.9,2587.8,0.7724]
[1751486172661,0.636,2587.9,2587.8,0.7724]
[1751486172860,0.005,2588.2,2588.1,0.77232]
[1751486173058,0.005,2588.2,2588.1,7.72908685]
[1751486173666,0.005,2588.2,2588.1,0.77232]
[1751486174462,0.6999,2588.2,2588.1,0.77232]
[1751486175067,0.005,2588.2,2588.1,0.77232]
[1751486177468,0.005,2588.2,2587.8,1.93101]
[1751486177766,35.834,2588.2,2588.1,0.77232]
[1751486177965,0.005,2588.2,2588.1,7.72908685]
[1751486179567,0.005,2588.2,2588.1,9.00848685]
[1751486181871,0.005,2588.2,2588.1,5.39382949]
[1751486182270,0.1289,2588.4,2588.3,0.77226]
[1751486183371,0.90113,2588.4,2588.3,0.77226]
[1751486185264,0.1289,2588.4,2588.3,4.11436949]
[1751486186068,0.90113,2588.4,2588.3,0.77226]
[1751486186268,2.0216,2588.6,2588.3,0.77226]
[1751486186269,0.6873,2588.6,2588.5,0.7722]
[1751486186468,0.6873,2588.6,2588.5,4.11430949]
[1751486186671,15.14030949,2589.1,2588.7,1.93035]
[1751486186672,0.7002,2589.1,2588.7,1.93035]
[1751486186870,0.6829,2589.3,2589.2,0.77199]
[1751486187269,1.45486,2589.3,2589.2,0.77199]
[1751486187572,4.02500949,2589.3,2588.8,5.29200949]
[1751486187772,0.77205,2589.1,2589.0,0.77202]
[1751486187968,0.25663097,2590.2,2589.5,1.92972]
[1751486188273,3.866,2595.6,2591.4,1.92833]
[1751486188474,55.63,2598.9,2592.9,0.3873]
[1751486188475,7.65265696,2596.3,2592.9,0.3873]
[1751486188672,6.417,2598.3,2593.5,0.3873]
[1751486188869,15.75377071,2598.2,2597.4,6.94958211]
[1751486189077,14.39407071,2598.1,2595.4,55.623]
[1751486189267,14.39407071,2598.1,2597.6,6.94958211]
[1751486189268,1.3795,2598.0,2597.6,6.94958211]
[1751486189469,6.67702976,2598.1,2597.9,6.94958211]
[1751486189670,1.3795,2598.5,2598.0,1.31927]
[1751486189870,14.39327071,2599.0,2598.4,5.17593878]
[1751486190170,10.92927143,2598.7,2598.5,1.53956358]
[1751486190477,10.92927143,2598.5,2597.6,3.34201819]
[1751486190674,69.447,2598.4,2596.6,7.67511089]
[1751486190974,69.447,2598.3,2596.8,1.92429]
[1751486191173,55.623,2598.8,2596.1,13.824]
[1751486191370,58.152,2598.7,2596.4,5.16875481]
[1751486191571,7.67511089,2598.0,2596.0,7.67511089]
[1751486191769,40.8,2599.4,2595.5,1.92528]
[1751486191770,38.35798,2605.6,2597.6,12.336151]
[1751486191975,1.40060701,2597.8,2597.6,12.336151]
[1751486192274,7.67511089,2598.0,2597.6,6.72074399]
[1751486192475,15.681,2599.4,2596.6,1.2841]
[1751486192668,7.67511089,2598.1,2596.6,1.2841]
[1751486192871,0.76949,2597.6,2596.6,5.04129291]
[1751486193072,40.8,2597.5,2596.5,15.42018875]
[1751486193268,7.67511089,2597.2,2596.5,15.42018875]
[1751486193573,0.76979,2596.6,2596.5,8.63904235]
[1751486193773,7.67511089,2596.8,2595.0,2.05435]
[1751486193973,7.67511089,2596.0,2595.0,1.2841]
[1751486194171,71.246,2595.9,2595.1,5.02542983]
[1751486194371,71.246,2595.9,2594.2,7.67511089]
[1751486194372,71.246,2595.9,2594.3,1.2841]
[1751486194674,71.246,2595.9,2595.3,1.9219]
[1751486194975,71.246,2595.9,2595.7,1.9219]
[1751486195578,1.3356,2595.8,2594.6,7.67511089]
[1751486195773,1.3356,2595.8,2595.7,1.9219]
[1751486196172,71.246,2595.9,2595.7,1.9219]
[1751486196369,71.246,2595.9,2595.8,1.9219]
[1751486196776,71.246,2595.9,2595.8,2.69192]
[1751486197671,71.246,2595.9,2595.8,1.9219]
[1751486197876,71.246,2595.9,2595.8,2.69192]
[1751486198673,0.00577234,2596.1,2595.8,1.9219]
[1751486198875,0.00577234,2596.1,2596.0,1.9219]
[1751486199277,0.00577234,2596.1,2596.0,2.69186]
[1751486199571,0.00577234,2596.1,2596.0,1.9219]
[1751486199777,15.942,2596.6,2596.0,6.9219]
[1751486199977,15.942,2596.6,2596.5,1.9219]
[1751486200170,55.514,2596.9,2596.6,0.76977]
[1751486200375,56.2837,2596.9,2596.8,1.9219]
[1751486200576,0.76975,2596.8,2596.7,1.9219]
[1751486200778,1.2902,2596.8,2596.0,9.07531089]
[1751486200979,1.2902,2596.8,2596.7,1.9219]
[1751486201281,2.6954,2597.0,2596.0,1.9219]
[1751486201476,0.76991,2596.2,2596.1,0.60155505]
[1751486201676,15.937,2596.2,2595.5,0.77011]
[1751486201975,0.7701,2595.6,2595.2,0.77019]
[1751486202178,2.15263,2595.5,2595.3,1.9219]
[1751486202375,0.77007,2595.7,2595.4,1.540655]
[1751486202574,42.1825,2596.1,2596.0,1.9219]
[1751486202779,42.95244,2596.1,2596.0,1.540655]
[1751486203178,0.9629,2596.3,2596.0,3.462555]
[1751486203386,0.9629,2596.3,2596.2,0.76991]
[1751486203684,0.9629,2596.3,2596.2,4.232465]
[1751486204075,0.9628,2596.5,2596.4,0.76985]
[1751486204281,0.9628,2596.5,2596.4,4.232405]
[1751486204481,17.41362,2596.5,2596.4,1.90159725]
[1751486204677,17.41362,2596.5,2596.4,1.540655]
[1751486204678,1.73262,2596.5,2596.4,1.540655]
[1751486204881,0.9628,2596.5,2596.4,4.232405]
[1751486205079,0.00577234,2596.7,2596.6,0.76979]
[1751486205285,0.00577234,2596.7,2596.6,4.232345]
[1751486205476,0.00577234,2596.7,2596.6,1.540655]
[1751486205877,1.40477234,2596.7,2596.6,1.540655]
[1751486206184,2.17453234,2596.7,2596.6,1.540655]
[1751486206386,0.76983,2596.5,2596.2,0.76989]
[1751486206581,0.00577234,2596.7,2596.6,2.69169]
[1751486206982,0.7698,2596.6,2595.8,9.60016089]
[1751486207184,2.16883,2596.5,2596.2,0.76989]
[1751486207382,0.00577234,2596.7,2595.9,1.92499]
[1751486207588,0.00577234,2596.7,2596.6,2.69169]
[1751486207983,1.36167234,2596.7,2596.6,0.76979]
[1751486208179,2.13143234,2596.7,2596.1,2.87369129]
[1751486208380,0.00577234,2596.7,2596.4,4.79559129]
[1751486208586,0.00577234,2596.7,2596.4,1.9219]
[1751486208885,2.13143234,2596.7,2596.5,2.69169]
[1751486209085,0.76979,2596.6,2596.4,2.69173]
[1751486209286,1.3559,2596.5,2596.4,2.69173]
[1751486209482,1.3559,2596.5,2596.4,0.76983]
[1751486209684,1.3559,2596.5,2596.4,3.65556848]
[1751486209885,1.3559,2596.5,2596.4,2.88573848]
[1751486210186,15.68177234,2596.7,2596.6,0.76979]
[1751486210382,0.00577234,2596.7,2596.4,2.88573848]
[1751486210586,0.77555234,2596.7,2596.5,2.69171]
[1751486210779,1.3215,2596.6,2596.4,2.88573848]
[1751486210979,2.09129,2596.6,2596.5,2.88573848]
[1751486211282,2.09129,2596.6,2596.4,0.76983]
[1751486211685,2.09131,2596.6,2596.4,0.76983]
[1751486211887,0.00577234,2596.7,2596.4,0.76983]
[1751486212088,0.00577234,2596.7,2596.6,2.89699414]
[1751486212288,0.7698,2596.6,2596.4,0.76983]
[1751486212488,64.23077234,2596.7,2596.4,4.35946337]
[1751486212689,0.7698,2596.6,2596.4,4.35945337]
[1751486212890,0.76982,2596.5,2596.4,3.58963337]
[1751486213080,69.23077234,2596.7,2596.4,2.90429793]
[1751486213388,69.23077234,2596.7,2596.6,2.91313992]
[1751486213588,65.00053234,2596.7,2596.6,2.91313992]
[1751486213789,70.00053234,2596.7,2596.6,2.91334587]
[1751486214090,0.76985,2596.4,2596.3,2.91334587]
[1751486214284,0.76985,2596.4,2596.3,3.49427963]
[1751486214491,0.76985,2596.4,2596.3,0.58093376]
[1751486214889,0.76985,2596.4,2596.3,0.57717081]
[1751486215384,0.76986,2596.4,2596.3,0.57717081]
[1751486215588,0.76986,2596.4,2596.3,1.34705081]
[1751486215984,0.76986,2596.4,2596.3,0.57717081]
[1751486216181,0.76986,2596.4,2596.3,5.38345806]
[1751486216389,0.76986,2596.4,2596.3,0.93818637]
[1751486216591,0.76988,2596.3,2596.2,5.01521748]
[1751486216889,0.76994,2596.1,2596.0,0.76994]
[1751486217090,48.329,2596.2,2596.1,0.76994]
[1751486217994,0.6374,2596.5,2596.1,1.9219]
[1751486218187,0.6374,2596.5,2596.4,2.69175]
[1751486218388,0.6374,2596.5,2596.4,4.23192417]
[1751486218593,0.6374,2596.5,2596.4,2.31002417]
[1751486219691,0.6374,2596.5,2596.4,4.23192417]
[1751486219884,2.34e-06,2596.7,2596.6,1.9219]
[1751486220091,1.92338,2598.1,2597.0,1.92189766]
[1751486220395,0.76949,2597.6,2597.5,3.0028184]
[1751486220690,63.195,2597.6,2597.5,5.31251257]
[1751486220995,63.96449,2597.6,2597.5,2.30969417]
[1751486221500,15.144,2597.6,2597.5,6.06321717]
[1751486221702,43.8792,2598.0,2597.5,7.21559483]
[1751486221898,3.0792,2598.0,2597.6,1.54017417]
[1751486222201,3.0792,2598.0,2597.9,5.69434687]
[1751486222401,3.0792,2598.0,2597.9,4.23079711]
[1751486222700,8.0792,2598.0,2597.9,1.53949945]
[1751486222893,8.0792,2598.0,2596.4,3.84916]
[1751486222894,15.75431089,2598.0,2596.6,1.92447]
[1751486223199,41.5694,2597.9,2597.8,3.00541297]
[1751486223500,3.0792,2598.0,2597.8,1.92189766]
[1751486223697,0.7694,2597.9,2597.8,1.92189766]
[1751486223899,3.0792,2598.0,2597.9,1.92189766]
[1751486224093,3.84857,2598.0,2597.9,1.92189766]
[1751486224395,0.76937,2598.0,2597.9,1.92189766]
[1751486224595,4.61742,2598.2,2597.5,1.3556]
[1751486224798,0.7694,2597.9,2597.8,1.92189766]
[1751486225104,7.67511089,2598.0,2597.1,0.76963]
[1751486225301,1.92367,2597.7,2597.4,1.92189766]
[1751486225495,47.35654033,2597.7,2597.3,1.92189766]
[1751486225794,15.14,2597.6,2596.8,5.25311498]
[1751486226000,15.14,2597.9,2597.2,7.67511089]
[1751486226194,2.6941,2598.2,2598.1,0.76934]
[1751486226399,2.6941,2598.2,2598.1,2.69123766]
[1751486226899,1.1248,2598.3,2598.2,2.69120766]
[1751486227093,1.1248,2598.3,2598.2,4.08340766]
[1751486227294,0.1627,2598.3,2598.2,4.08340766]
[1751486227697,3.0786,2598.5,2598.4,0.76925]
[1751486227894,3.0786,2598.5,2598.4,4.19001447]
[1751486228098,3.0786,2598.5,2598.4,7.69114766]
[1751486228298,3.0786,2598.5,2598.4,2.69114766]
[1751486228493,3.0786,2598.5,2598.4,4.18950276]
[1751486228702,3.0786,2598.5,2598.4,2.69114766]
[1751486228900,3.0786,2598.5,2598.4,4.18950276]
[1751486229504,2.6936,2598.7,2598.6,0.76919]
[1751486229704,3.46276,2598.7,2598.6,1.92189766]
[1751486230299,3.46276,2598.7,2598.6,2.69108766]
[1751486230602,2.6936,2598.7,2598.1,1.92333]
[1751486230803,0.76921,2598.6,2598.5,1.92189766]
[1751486231003,2.6936,2598.7,2598.4,1.92189766]
[1751486231203,0.76922,2598.5,2598.4,1.92189766]
[1751486231509,0.76932,2598.2,2597.8,1.3794]
[1751486231807,0.7693,2598.3,2597.8,1.3794]
[1751486232001,3.079,2598.2,2598.1,0.76932]
[1751486232401,3.079,2598.2,2598.1,2.69121766]
[1751486232601,3.079,2598.2,2598.1,0.76932]
[1751486232804,3.079,2598.2,2598.1,2.69121766]
[1751486233999,0.76927,2598.4,2598.1,2.69121766]
[1751486234000,0.76925,2598.5,2598.1,1.92189766]
[1751486234197,43.4936,2598.7,2598.2,3.19169]
[1751486234402,3.46276,2598.7,2598.6,2.69108766]
[1751486234603,2.6936,2598.7,2598.6,0.76919]
[1751486234907,2.6936,2598.7,2598.6,2.69108766]
[1751486235701,2.6936,2598.7,2598.6,10.36619855]
[1751486235906,2.6936,2598.7,2598.6,2.69108766]
[1751486236798,1.92179,2600.3,2598.7,1.92291]
[1751486237000,1.92181,2600.2,2598.9,1.92273]
[1751486237206,7.67511089,2599.9,2598.8,1.3306]
[1751486237400,1.92218,2599.7,2597.8,7.67511089]
[1751486237605,71.6546,2599.8,2597.9,16.8633]
[1751486237801,0.16320234,2599.4,2598.6,1.92293]
[1751486238002,0.76906,2599.1,2598.7,1.3761]
[1751486238196,0.93229234,2599.0,2598.7,1.3761]
[1751486238399,0.93229234,2599.0,2598.8,0.76914]
[1751486238601,0.93234234,2598.8,2598.6,0.76918]
[1751486238797,4.04,2599.0,2598.4,0.76924]
[1751486238798,0.76922,2598.5,2598.4,0.76924]
[1751486239103,0.16320234,2598.5,2598.4,0.76924]
[1751486239304,0.76921,2598.6,2598.5,0.76922]
[1751486239605,3.0782,2598.9,2598.3,1.92317]
[1751486239806,3.0782,2598.9,2598.8,0.76914]
[1751486240801,3.0782,2598.9,2598.8,5.76914]
[1751486241197,3.0782,2598.9,2598.8,7.11164]
[1751486241402,0.479,2599.0,2598.9,0.76911]
[1751486241601,0.479,2599.0,2598.9,2.11161]
[1751486241805,0.479,2599.0,2598.9,7.11161]
[1751486242498,0.7688,2600.0,2599.8,0.76884]
[1751486242800,0.16320234,2599.6,2599.3,1.92245]
[1751486243004,16.55954,2600.6,2599.4,1.3425]
[1751486243203,4.04,2600.6,2599.4,1.3425]
[1751486243410,3.0763,2600.5,2599.5,1.326]
[1751486243700,7.1163,2600.5,2599.8,1.92211]
[1751486243905,7.1163,2600.5,2599.7,1.92218]
[1751486243906,0.16320234,2600.2,2600.1,0.76875]
[1751486244100,0.16320234,2600.1,2600.0,0.76878]
[1751486244302,0.16320234,2600.0,2599.3,1.92248]
[1751486244503,22.31311089,2600.3,2598.8,1.92282]
[1751486244705,0.16320234,2599.5,2598.9,3.246]
[1751486245005,0.16320234,2599.4,2598.7,1.92292]
[1751486245303,4.04,2599.5,2598.2,1.92324]
[1751486245500,1.389,2599.3,2598.7,0.76916]
[1751486245809,0.77484234,2599.1,2598.8,0.76912]
[1751486246003,4.81484234,2599.1,2598.8,0.76912]
[1751486246198,0.16320234,2598.9,2598.8,0.76912]
[1751486246403,14.80020234,2598.9,2598.5,1.3233]
[1751486246607,0.16320234,2598.5,2598.1,7.67511089]
[1751486246803,19.44612,2598.9,2598.1,9.59841089]
[1751486247101,0.16320234,2598.5,2598.4,0.76925]
[1751486251306,0.00577234,2599.1,2599.0,0.76908]
[1751486251502,0.00577234,2599.1,2599.0,8.44419089]
[1751486252099,0.00577234,2599.1,2599.0,0.76908]
[1751486254803,4.04577234,2599.1,2598.8,0.76913]
[1751486255005,4.04577234,2599.1,2598.4,7.67511089]
[1751486255210,0.76915,2598.8,2598.7,0.76915]
[1751486255407,0.76914,2598.8,2598.7,0.76915]
[1751486255714,0.76916,2598.7,2598.6,0.76918]
[1751486256007,18.427,2598.8,2598.7,0.76916]
[1751486256313,0.76917,2598.7,2598.6,0.76918]
[1751486256514,0.76917,2598.7,2598.3,8.98861089]
[1751486256515,19.19615,2598.8,2598.7,0.76916]
[1751486256916,18.427,2598.8,2598.7,0.76916]
[1751486257111,19.19614,2598.8,2598.7,0.76916]
[1751486257916,18.427,2598.8,2598.7,0.76916]
[1751486258619,0.76918,2598.7,2598.6,0.76918]
[1751486258823,1.92272,2599.0,2598.5,0.7692]
[1751486259022,1.92842234,2599.1,2598.5,0.7692]
[1751486259023,0.00577234,2599.1,2599.0,0.76908]
[1751486261324,4.04577234,2599.1,2599.0,0.76908]
[1751486261919,4.81484234,2599.1,2598.6,1.92293]
[1751486262127,1.2989,2599.0,2598.8,0.76912]
[1751486262426,2.06799,2599.0,2598.8,0.76911]
[1751486262620,5.3389,2599.0,2598.9,0.76911]
[1751486264123,6.10798,2599.0,2598.5,1.92307]
[1751486264329,6.10798,2599.0,2598.8,0.76912]
[1751486264529,6.10798,2599.0,2598.9,0.76911]
[1751486264921,6.10798,2599.0,2598.8,0.76912]
[1751486265126,0.76911,2598.9,2598.7,0.76915]
[1751486265321,1.92292,2598.7,2598.0,1.12142946]
[1751486265521,1.92307,2598.5,2597.7,1.12142946]
[1751486265726,7.67511089,2598.3,2597.5,1.12142946]
[1751486265927,0.76955,2597.4,2597.3,1.4983551]
[1751486266127,0.76958,2597.3,2597.2,1.4983551]
[1751486266424,0.76958,2597.3,2596.8,0.30430349]
[1751486266425,1.3059,2597.3,2596.8,1.4983551]
[1751486266629,5.3459,2597.3,2596.9,0.7697]
[1751486266829,6.11551,2597.3,2596.9,0.7697]
[1751486267025,5.3459,2597.3,2597.0,0.76966]
[1751486267221,5.3459,2597.3,2596.5,3.4228651]
[1751486267222,0.76961,2597.2,2596.5,3.4228651]
[1751486267530,2.07551,2597.2,2596.9,0.76967]
[1751486267731,6.11551,2597.2,2597.0,0.76966]
[1751486268131,6.11551,2597.2,2596.6,1.92447]
[1751486268132,6.11551,2597.2,2597.1,0.76964]
[1751486268322,6.11551,2597.2,2596.6,1.92447]
[1751486268528,0.76964,2597.1,2596.5,1.92455]
[1751486268731,0.7697,2596.9,2596.7,0.76974]
[1751486268930,5.3343,2597.1,2596.0,9.59998089]
[1751486269126,0.76978,2596.7,2596.4,0.76982]
[1751486269321,14.15,2596.6,2596.4,0.76982]
[1751486269728,0.76982,2596.5,2596.4,0.76982]
[1751486269922,18.19,2596.6,2596.4,0.76982]
[1751486269923,17.9598,2596.6,2596.4,0.76982]
[1751486270130,0.76982,2596.5,2596.3,0.76986]
[1751486270331,17.9598,2596.6,2596.4,0.76982]
[1751486270625,14.153,2597.1,2596.3,7.67511089]
[1751486270832,0.76967,2597.0,2596.7,0.76973]
[1751486271022,2.06397,2597.0,2596.7,0.76973]
[1751486271225,0.7697,2596.9,2596.7,0.76973]
[1751486271432,0.7697,2596.9,2596.8,0.76973]
[1751486271632,0.76973,2596.8,2596.7,0.76974]
[1751486271829,4.04,2596.9,2596.8,0.76973]
[1751486272733,4.80971,2596.9,2596.7,0.76974]
[1751486273129,0.76973,2596.8,2596.4,1.2801]
[1751486273530,4.80973,2596.8,2596.7,0.76976]
[1751486274235,4.04,2596.8,2596.7,0.76976]
[1751486275128,13.907,2597.2,2597.1,0.76964]
[1751486275826,17.947,2597.2,2597.1,0.76964]
[1751486276531,0.76964,2597.1,2597.0,0.76965]
[1751486276732,0.76964,2597.1,2596.9,0.76967]
[1751486277035,0.7697,2597.0,2596.9,0.76969]
[1751486277435,4.8097,2597.0,2596.9,0.76969]
[1751486278535,4.80968,2597.0,2596.8,0.76971]
[1751486278727,0.7697,2596.9,2596.8,0.76971]
[1751486279130,4.8097,2596.9,2596.8,0.76971]
[1751486280035,4.04,2596.9,2596.8,0.76971]
[1751486280235,4.8097,2596.9,2596.8,0.76971]
[1751486280431,58.102,2597.1,2596.8,0.76971]
[1751486280432,58.102,2597.1,2597.0,0.76967]
[1751486280734,62.142,2597.1,2597.0,0.76967]
[1751486281328,4.04,2597.1,2597.0,0.76967]
[1751486281527,0.76959,2597.4,2597.3,0.76955]
[1751486281727,58.70259,2597.4,2597.3,0.76955]
[1751486281928,62.74259,2597.4,2597.3,0.76955]
[1751486282634,18.71859,2597.4,2597.3,0.76955]
[1751486282833,40.8,2597.8,2597.2,1.92402]
[1751486283038,44.84,2597.8,2597.4,7.67511089]
[1751486283232,43.949,2597.7,2597.6,0.76947]
[1751486283432,46.6196,2597.7,2597.6,0.76949]
[1751486283838,47.38906,2597.7,2597.6,0.76949]
[1751486284136,0.76949,2597.6,2597.5,1.2793]
[1751486284335,0.76962,2597.2,2597.1,0.76961]
[1751486284640,44.62462,2597.2,2597.1,0.76964]
[1751486284933,4.80962,2597.2,2597.1,0.76964]
[1751486285138,62.55562,2597.2,2597.1,0.76964]
[1751486285438,61.786,2597.2,2597.1,0.76964]
[1751486286340,2.6946,2597.7,2597.4,0.76952]
[1751486286535,2.6946,2597.7,2597.6,0.76949]
[1751486287143,5.4e-07,2597.7,2597.6,5.76949]
[1751486288043,13.668,2598.5,2598.4,0.76925]
[1751486288342,18.47722,2598.5,2598.4,0.76925]
[1751486288542,17.708,2598.5,2598.4,0.76925]
[1751486288738,18.47722,2598.5,2598.4,0.76925]
[1751486289342,3.0784,2598.7,2598.6,0.76919]
[1751486291345,3.0784,2598.7,2598.6,5.76919]
[1751486291547,13.665,2599.6,2599.5,0.76893]
[1751486291842,0.76881,2599.9,2599.7,0.76885]
[1751486292036,0.0961,2599.8,2599.7,5.76887]
[1751486292242,0.0961,2599.8,2599.7,8.44398089]
[1751486292636,0.0961,2599.8,2599.4,7.67511089]
[1751486293041,4.1361,2599.8,2599.1,7.67511089]
[1751486293242,0.86496,2599.8,2599.4,7.67511089]
[1751486293444,3.0772,2599.7,2599.5,0.76891]
[1751486293739,0.769,2599.3,2599.2,0.76902]
[1751486293939,0.76898,2599.4,2599.3,0.76899]
[1751486294141,0.76898,2599.4,2599.2,0.769]
[1751486294444,7.1172,2599.7,2599.3,0.76898]
[1751486294445,3.0772,2599.7,2599.3,0.76898]
[1751486294637,7.1172,2599.7,2599.1,7.67511089]
[1751486294841,7.1172,2599.7,2598.9,7.67511089]
[1751486295041,1.92225,2599.6,2599.1,0.76903]
[1751486295241,0.76896,2599.5,2599.3,0.76899]
[1751486295442,0.76896,2599.5,2598.9,7.67511089]
[1751486295443,0.76898,2599.4,2599.2,0.76901]
[1751486295747,0.76893,2599.5,2599.0,1.9227]
[1751486295946,0.76891,2599.6,2599.4,0.76894]
[1751486296242,0.76895,2599.5,2599.3,0.76897]